{"text_format":"2","workbook":"xlsx","n_sheets":8,"sheets":["2022","2021","degradado (2021)","gráficas (2021)","degradado (2020)","gráficas (2020)","Compartivo x años (B)","Compartivo x años (C)"],"not_rendered":{"charts":16,"images":5,"macros":0,"external_links":1,"defined_names":14,"comments":0,"pivot_tables":0},"unopened":[],"bounds":{"document_bytes":16777216,"sheet_cells":100000,"run_cost":"one","rows_first":2000,"rows_last":500,"rows_between":2000,"halvings":0,"cell_chars":16384,"cell_head_chars":4096},"cells_cut":0,"cells_raw":0,"read":"whole","date_system":"1900"}

{"sheet":"2022","index":0,"n_rows":16,"n_cols":10,"rows_kept":16,"cut":false,"hidden":false,"merged":[]}
[]
["MES","NÚMERO DE BECAS \nTOTAL ACUMULADO","Sexo","BACHILLERATO","LICENCIATURA ","POSGRADOS","IDIOMAS","DIPLOMADO","CURSOS","TÉCNICO"]
["ENERO",28,"H: 6\nM: 22",null,27,1]
["FEBRERO",14,"H: 2\nM: 12",null,14]
["MARZO",24,"H: 1                               M: 23",null,23,null,null,1]
["ABRIL",14,"H: 0                        M: 14",null,14]
["MAYO",16," H: 3                       M:13",null,16]
["JUNIO",10,"H: 0                        M: 10",null,10]
["JULIO",7,"H:0\nM:7",null,7]
["AGOSTO",16,"H: 1                               M: 15",null,16]
["SEPTIEMBRE",88,"H: 5                                  M: 83",null,88]
["OCTUBRE",14,"H: 3        \nM: 11",null,14]
["NOVIEMBRE",0,"H:0\nM:0"]
["DICIEMBRE"]
[null,{"$f":"SUM(B3:B14)","v":231}]
["TOTAL"]

{"sheet":"2021","index":1,"n_rows":31,"n_cols":28,"rows_kept":31,"cut":false,"hidden":false,"merged":[[14,27,15,27],[9,12,9,13],[14,2,14,5],[14,23,15,23],[14,24,15,24],[14,19,15,19],[14,20,15,20],[14,21,15,21],[14,22,15,22],[14,13,15,13],[14,14,15,14],[14,15,15,15],[14,16,15,16],[14,17,15,17],[14,18,15,18],[14,9,15,9],[17,0,20,0],[22,0,25,0],[27,0,30,0],[14,25,15,25],[14,26,15,26],[14,0,15,1],[14,10,15,10],[14,11,15,11],[14,12,15,12]]}
{"$rows_empty":8}
["DIRECCIÓN DE JUVENTUDES "]
["SUBSECRETARÍA DE DERECHOS HUMANOS "]
["SECRETARIA GENERAL DE GOBIERNO"]
["Indicador de Becas de instituciones de educación privada, gestionadas y entregadas  \n\"Becas Joven\" "]
["Año: 2019 a 2021"]
[]
["Indicador",null,"Avance acumulado anual",{"$nulls":6},"Enero","Febrero","Marzo","Avance \n1er. Trimestre","Abril ","Mayo ","Junio","Avance \n2do. Trimestre","Julio","Agosto","Septiembre","Avance \n3er.Trimestre","Octubre","Noviembre","Diciembre","Avance\n 4to.Trimestre","Acumulado en los trimestres","Porcentaje de avance","Observacións"]
[null,null,2019,2020,2021,"TOTAL"]
[]
["Beneficiarios de la Dirección de Juventudes\nrespecto al año 2019",{"$nulls":6},"META \n2019"]
[]
[null,"Convenios \nGestión de convenios con escuelas privadas para la eduación media superior, superior, posgrado e idiomas.",{"$f":"Z20","v":25},{"$f":"Z25","v":5},{"$f":"Z30","v":0},{"$f":"SUM(C20:E20)","v":30},null,null,null,0,20,0,{"$f":"SUM(J20:L20)","v":20},0,0,0,{"$f":"SUM(N20:P20)","v":0},0,0,0,{"$f":"SUM(R20:T20)","v":0},4,1,0,{"$f":"SUM(V20:X20)","v":5},{"$f":"SUM(M20,Q20,U20,Y20)","v":25},{"$f":"Z20/H20","v":{"$error":"#DIV/0!"}}]
[null,"Becas de instituciones de educación privada, gestionadas y entregadas  \n\"Becas Joven\" ",{"$f":"Z21","v":96},{"$f":"Z26","v":125},{"$f":"Z31","v":134},{"$f":"SUM(C21:E21)","v":355},null,null,null,4,5,19,{"$f":"SUM(J21:L21)","v":28},6,17,2,{"$f":"SUM(N21:P21)","v":25},1,4,24,{"$f":"SUM(R21:T21)","v":29},4,9,1,{"$f":"SUM(V21:X21)","v":14},{"$f":"SUM(M21,Q21,U21,Y21)","v":96},{"$f":"Z21/H21","v":{"$error":"#DIV/0!"}}]
[]
["Beneficiarios de la Dirección de Juventudes\nrespecto al año anterior",{"$nulls":6},"META \n2020"]
[]
[null,"Convenios \nGestión de convenios con escuelas privadas para la eduación media superior, superior, posgrado e idiomas.",{"$nulls":7},1,1,1,{"$f":"SUM(J25:L25)","v":3},0,0,0,{"$f":"SUM(N25:P25)","v":0},1,0,0,{"$f":"SUM(R25:T25)","v":1},0,0,1,{"$f":"SUM(V25:X25)","v":1},{"$f":"SUM(M25,Q25,U25,Y25)","v":5},{"$f":"Z25*100/H25","v":{"$error":"#DIV/0!"}}]
[null,"Becas de instituciones de educación privada, gestionadas y entregadas  \n\"Becas Joven\" ",{"$nulls":5},100,null,{"$f":"('degradado (2020)'!B15)","v":12},{"$f":"'degradado (2020)'!B16","v":14},{"$f":"'degradado (2020)'!B17","v":0},{"$f":"SUM(J26:L26)","v":26},{"$f":"'degradado (2020)'!B18","v":9},{"$f":"'degradado (2020)'!B19","v":6},{"$f":"'degradado (2020)'!B20","v":5},{"$f":"SUM(N26:P26)","v":20},{"$f":"'degradado (2020)'!B21","v":14},{"$f":"'degradado (2020)'!B22","v":16},{"$f":"'degradado (2020)'!B23","v":22},{"$f":"SUM(R26:T26)","v":52},{"$f":"'degradado (2020)'!B24","v":19},{"$f":"'degradado (2020)'!B25","v":3},{"$f":"'degradado (2020)'!B26","v":5},{"$f":"SUM(V26:X26)","v":27},{"$f":"SUM(M26,Q26,U26,Y26)","v":125},{"$f":"Z26/H26","v":1.25}]
[]
["Beneficiarios de la Dirección de Juventudes\ndel año en curso",{"$nulls":6},"META \n2021"]
[]
[null,"Convenios \nGestión de convenios con escuelas privadas para la eduación media superior, superior, posgrado e idiomas.",{"$nulls":7},0,0,0,{"$f":"SUM(J30:L30)","v":0},0,0,0,{"$f":"SUM(N30:P30)","v":0},0,0,0,{"$f":"SUM(R30:T30)","v":0},0,0,0,{"$f":"SUM(V30:X30)","v":0},{"$f":"SUM(M30,Q30,U30,Y30)","v":0},{"$f":"Z30*100/H30","v":{"$error":"#DIV/0!"}}]
[null,"Becas de instituciones de educación privada, gestionadas y entregadas  \n\"Becas Joven\" ",{"$nulls":7},{"$f":"'degradado (2021)'!B16","v":7},{"$f":"'degradado (2021)'!B17","v":19},{"$f":"'degradado (2021)'!B18","v":25},{"$f":"SUM(J31:L31)","v":51},{"$f":"'degradado (2021)'!B19","v":8},{"$f":"'degradado (2021)'!B20","v":12},{"$f":"'degradado (2021)'!B21","v":2},{"$f":"SUM(N31:P31)","v":22},{"$f":"'degradado (2021)'!B22","v":1},{"$f":"'degradado (2021)'!B23","v":26},{"$f":"'degradado (2021)'!B24","v":25},{"$f":"SUM(R31:T31)","v":52},{"$f":"'degradado (2021)'!B25","v":9},{"$f":"'degradado (2021)'!B26","v":0},{"$f":"'degradado (2021)'!B27","v":0},{"$f":"SUM(V31:X31)","v":9},{"$f":"SUM(M31,Q31,U31,Y31)","v":134},{"$f":"Z31/H31","v":{"$error":"#DIV/0!"}}]

{"sheet":"degradado (2021)","index":2,"n_rows":29,"n_cols":10,"rows_kept":29,"cut":false,"hidden":false,"merged":[]}
{"$rows_empty":8}
["DIRECCIÓN DE JUVENTUDES "]
["SUBSECRETARÍA DE DERECHOS HUMANOS "]
["SECRETARÍA GENERAL DE GOBIERNO "]
["Indicador de Becas de instituciones de educación privada, gestionadas y entregadas  \n\"Becas Joven\" "]
["Año: 2021"]
[]
["MES","NÚMERO DE BECAS \nTOTAL ACUMULADO","BACHILLERATO","LICENCIATURA ","POSGRADOS","IDIOMAS","DIPLOMADO","CURSOS","TÉCNICO","Observaciónes"]
["ENERO",{"$f":"SUM(C16:I16)","v":7},0,7,0,0,0,0,0]
["FEBRERO",19,0,14,5,0,0,0,0]
["MARZO",25,0,21,3,1,0,0,0]
["ABRIL",8,0,4,4,0,0,0,0]
["MAYO",12,0,12,0,0,0,0,0]
["JUNIO",2,0,2,0,0,0,0,0]
["JULIO",1,0,1,0,0,0,0,0]
["AGOSTO",26,0,23,3,0,0,0,0]
["SEPTIEMBRE",25,0,22,3,0,0,0,0]
["OCTUBRE",9,0,5,4,0,0,0,0]
["NOVIEMBRE",0,0,0,0,0,0,0,0]
["DICIEMBRE",0,0,0,0,0,0,0,0]
[]
["TOTAL",{"$f":"SUM(B16:B27)","v":134},0,111,22,1,0,0,0]

{"sheet":"gráficas (2021)","index":3,"n_rows":271,"n_cols":3,"rows_kept":271,"cut":false,"hidden":false,"merged":[[208,1,208,2],[234,1,234,2],[16,1,16,2],[53,1,53,2],[103,1,103,2],[128,1,128,2],[185,1,185,2]]}
[]
[]
[]
[]
["DIRECCIÓN DE JUVENTUDES "]
["SUBSECRETARÍA DE DERECHOS HUMANOS "]
["SECRETARÍA GENERAL DE GOBIERNO"]
["Indicador de Becas de instituciones de educación privada, gestionadas y entregadas  \n\"Becas Joven\" "]
["Año: 2021"]
{"$rows_empty":7}
[null,"PORCENTAJE DE PARTICIPACIÓN\n POR MES"]
[]
[null,"ENERO",{"$f":"'2021'!J31","v":7}]
[null,"FEBRERO",{"$f":"'2021'!K31","v":19}]
[null,"MARZO",{"$f":"'2021'!L31","v":25}]
[null,"ABRIL",{"$f":"'2021'!N31","v":8}]
[null,"MAYO",{"$f":"'2021'!O31","v":12}]
[null,"JUNIO",{"$f":"'2021'!P31","v":2}]
[null,"JULIO",{"$f":"'2021'!R31","v":1}]
[null,"AGOSTO",{"$f":"'2021'!S31","v":26}]
[null,"SEPTIEMBRE",{"$f":"'2021'!T31","v":25}]
[null,"OCTUBRE",{"$f":"'2021'!V31","v":9}]
[null,"NOVIEMBRE",{"$f":"'degradado (2021)'!B26","v":0}]
[null,"DICIEMBRE",{"$f":"'degradado (2021)'!B27","v":0}]
[null,"TOTAL",{"$f":"SUM(C19:C30)","v":134}]
{"$rows_empty":22}
[null,"PORCENTAJE DE \nPARTICIPACIÓN "]
[]
[null,"NUEVO INGRESO",55]
[null,"RENOVACIÓN",79]
[null,"TOTAL",{"$f":"SUM(C56:C57)","v":134}]
{"$rows_empty":45}
[null,"PORCENTAJE DE\nPARTICIPACIÓN POR SEXO"]
[]
[null,"MUJERES",117]
[null,"HOMBRES",17]
[null,"TOTAL",{"$f":"SUM(C106:C107)","v":134}]
{"$rows_empty":20}
[null,"PORCENTAJE DE PARTICIPACIÓN POR MUNICIPIOS"]
[]
[null,"GUADALAJARA",41]
[null,"ZAPOPAN",21]
[null,"TLAQUEPAQUE",17]
[null,"TONALÁ",14]
[null,"EL SALTO",2]
[null,"TLAJOMULCO DE ZÚÑIGA",13]
[null,"IXTLAHUCAN DE LOS MEMBRILLOS",0]
[null,"JUANACATLÁN",1]
[null,"ZAPOTLANEJO",0]
[null,"ACATLÁN DE JUÁREZ ",1]
[null,"AMACUECA",0]
[null,"AMECA",2]
[null,"CHAPALA ",3]
[null,"CONCEPCIÓN DE BUENOS AIRES ",3]
[null,"CUQUIO",1]
[null,"El ARENAL",0]
[null,"JOCOTEPEC",0]
[null,"MAGDANELA",2]
[null,"VALLE DE JUÁREZ",0]
[null,"ZACOALCO DE TORRES",2]
[null,"Vacias",10]
[null,"Salamanca",1]
[null,"TOTAL",{"$f":"SUM(C131:C152)","v":134}]
{"$rows_empty":32}
[null,"PORCENTAJE DE PARTICIPACIÓN POR NIVEL ACADÉMICO"]
[]
[null,"BACHILLERATO",{"$f":"'degradado (2021)'!C29","v":0}]
[null,"LICENCIATURAS",{"$f":"'degradado (2021)'!D29","v":111}]
[null,"CARRERAS TÉCNICA",{"$f":"'degradado (2021)'!I29","v":0}]
[null,"DIPLOMADOS",0]
[null,"POSGRADOS",{"$f":"'degradado (2021)'!E29","v":22}]
[null,"IDIOMAS",{"$f":"'degradado (2021)'!F29","v":1}]
[null,"TOTAL",{"$f":"SUM(C188:C193)","v":134}]
{"$rows_empty":14}
[null,"PORCENTAJE DE PARTICIPACIÓN POR INSTITUCIÓN EDUCATIVA"]
[]
[null,"CENTRO DE CAPACITACIÓN EN MARKETING",0]
[null,"CENTRO INTEGRAL EDUCATIVO Y LENGUAS EXTRANJERAS ",0]
[null,"CEP - CENTRO DE ESTUDIOS PROFECIONALES ",0]
[null,"CLEU",6]
[null,"DECROLY",62]
[null,"ENGLISH KEY",0]
[null,"U. ENRIQUE REBSAMEN ",44]
[null,"GQB",0]
[null,"IMAC",1]
[null,"UNIAT",8]
[null,"UNIVA",0]
[null,"UNIVER",12]
[null,"UNIVERSIDAD AZTECA",0]
[null,"UNIVERSIDAD METROPOLITANA DE OCCIDENTE ",0]
[null,"UTEG",0]
[null,"UTEGRA",1]
[null,"?",0]
[null,"TOTAL",{"$f":"SUM(C211:C227)","v":134}]
[]
[null,"PORCENTAJE DE PARTICIPACIÓN",{"$f":"7/30","v":0.23333333333333334}]
[]
[]
[]
[]
[null,"PORCENTAJE DE PARTICIPACIÓN POR EDAD"]
[]
[null,12,0]
[null,13,0]
[null,14,0]
[null,15,0]
[null,16,0]
[null,17,3]
[null,18,10]
[null,19,15]
[null,20,8]
[null,21,14]
[null,22,8]
[null,23,5]
[null,24,2]
[null,25,2]
[null,26,2]
[null,27,6]
[null,28,4]
[null,29,2]
[null,30,4]
[null,31,1]
[null,32,3]
[null,33,2]
[null,34,5]
[null,35,2]
[null,36,1]
[null,37,1]
[null,38,3]
[null,40,2]
[null,41,3]
[null,42,2]
[null,43,1]
[null,52,1]
[null,53,1]
[null,"Vacias",12]
[null,"TOTAL",{"$f":"SUM(C237:C270)","v":125}]

{"sheet":"degradado (2020)","index":4,"n_rows":28,"n_cols":10,"rows_kept":28,"cut":false,"hidden":false,"merged":[]}
{"$rows_empty":7}
["DIRECCIÓN DE JUVENTUDES "]
["SUBSECRETARÍA DE DERECHOS HUMANOS "]
["SECRETARÍA GENERAL DE GOBIERNO"]
["Indicador de Becas de instituciones de educación privada, gestionadas y entregadas  \n\"Becas Joven\" "]
["Año: 2020"]
[]
["MES","NÚMERO DE BECAS \nTOTAL ACUMULADO","BACHILLERATO","LICENCIATURA ","POSGRADOS","IDIOMAS","DIPLOMADO","CURSOS","TÉCNICO","Observaciónes"]
["ENERO",{"$f":"SUM(C15:I15)","v":12},4,7,0,1,0,0,0]
["FEBRERO",{"$f":"SUM(C16:I16)","v":14},2,10,1,1,0,0,0]
["MARZO",0,0,0,0,0,0,0,0]
["ABRIL",9,0,6,3,0,0,0,0]
["MAYO",6,0,5,1,0,0,0,0]
["JUNIO",5,0,2,3,0,0,0,0]
["JULIO",14,0,11,0,3,0,0,0]
["AGOSTO",16,0,11,2,3,0,0,0]
["SEPTIEMBRE",22,0,13,7,0,1,0,1]
["OCTUBRE",19,0,19,0,0,0,0,0]
["NOVIEMBRE",3,0,2,1,0,0,0,0]
["DICIEMBRE",5,0,4,0,1,0,0,0]
[]
["TOTAL",{"$f":"SUM(B15:B26)","v":125},6,90,18,9,1,0,1]

{"sheet":"gráficas (2020)","index":5,"n_rows":262,"n_cols":3,"rows_kept":262,"cut":false,"hidden":false,"merged":[[203,1,203,2],[228,1,228,2],[11,0,11,4],[17,1,17,2],[54,1,54,2],[104,1,104,2],[129,1,129,2],[180,1,180,2]]}
[]
[]
[]
[]
["DIRECCIÓN DE JUVENTUDES "]
["SUBSECRETARÍA DE DERECHOS HUMANOS "]
["SECRETARÍA GENERAL DE GOBIERNO "]
["Indicador de Becas de instituciones de educación privada, gestionadas y entregadas  \n\"Becas Joven\" "]
["Año: 2020"]
{"$rows_empty":8}
[null,"PORCENTAJE DE PARTICIPACION\n POR MES"]
[]
[null,"ENERO",{"$f":"('[1]degradado (2020)'!B16)","v":12}]
[null,"FEBRERO",{"$f":"'[1]degradado (2020)'!B17","v":14}]
[null,"MARZO",{"$f":"'[1]degradado (2020)'!B18","v":0}]
[null,"ABRIL",{"$f":"'[1]degradado (2020)'!B19","v":9}]
[null,"MAYO",{"$f":"'[1]degradado (2020)'!B20","v":6}]
[null,"JUNIO",{"$f":"'[1]degradado (2020)'!B21","v":5}]
[null,"JULIO",{"$f":"'[1]degradado (2020)'!B22","v":14}]
[null,"AGOSTO",{"$f":"'[1]degradado (2020)'!B23","v":16}]
[null,"SEPTIEMBRE",{"$f":"'[1]degradado (2020)'!B24","v":22}]
[null,"OCTUBRE",{"$f":"'[1]degradado (2020)'!B25","v":19}]
[null,"NOVIEMBRE",{"$f":"'[1]degradado (2020)'!B26","v":3}]
[null,"DICIEMBRE",{"$f":"'[1]degradado (2020)'!B27","v":5}]
[null,"TOTAL",{"$f":"SUM(C20:C31)","v":125}]
{"$rows_empty":22}
[null,"PORCENTAJE DE \nPARTICIPACIÓN "]
[]
[null,"NUEVO INGRESO",85]
[null,"RENOVACIÓN",40]
[null,"TOTAL",{"$f":"SUM(C57:C58)","v":125}]
{"$rows_empty":45}
[null,"PORCENTAJE DE\nPARTICIPACION POR SEXO"]
[]
[null,"MUJERES",103]
[null,"HOMBRES",22]
[null,"TOTAL",{"$f":"SUM(C107:C108)","v":125}]
{"$rows_empty":20}
[null,"PORCENTAJE DE PARTICIPACIÓN POR MUNICIPIOS"]
[]
[null,"GUADALAJARA",41]
[null,"ZAPOPAN",22]
[null,"TLAQUEPAQUE",17]
[null,"TONALÁ",16]
[null,"EL SALTO",2]
[null,"TLAJOMULCO DE ZÚÑIGA",12]
[null,"IXTLAHUCAN DE LOS MEMBRILLOS",1]
[null,"JUANACATLÁN",1]
[null,"ZAPOTLANEJO ",0]
[null,"AMACUECA",1]
[null,"CHAPALA ",1]
[null,"El ARENAL",1]
[null,"JOCOTEPEC",1]
[null,"MAGDANELA",1]
[null,"VALLE DE JUÁREZ",1]
[null,"Vacias",7]
[null,"TOTAL",{"$f":"SUM(C132:C147)","v":125}]
{"$rows_empty":32}
[null,"PORCENTAJE DE PARTICIPACIÓN POR NIVEL ACADÉMICO"]
[]
[null,"BACHILLERATO",6]
[null,"LICENCIATURAS",90]
[null,"CARRERAS TÉCNICA",1]
[null,"DIPLOMADOS",1]
[null,"POSGRADOS",18]
[null,"IDIOMAS",9]
[null,"TOTAL",{"$f":"SUM(C183:C188)","v":125}]
{"$rows_empty":14}
[null,"PORCENTAJE DE PARTICIPACIÓN POR INSTITUCIÓ EDUCATIVA"]
[]
[null,"CENTRO DE CAPACITACIÓN EN MARKETING",1]
[null,"CENTRO INTEGRAL EDUCATIVO Y LENGUAS EXTRANJERAS ",2]
[null,"CENTRO DE ESTUDIOS PROFECIONALES | CEP",2]
[null,"COLEGIO LIBRE DE ESTUDIOS \nUNIVERSITARIOS | CLEU",8]
[null,"DECROLY",34]
[null,"ENGLISH KEY",2]
[null,"U. ENRIQUE REBSAMEN ",29]
[null,"GQB",2]
[null,"IMAC",6]
[null,"UNIVA",1]
[null,"UNIVER",24]
[null,"UNIVERSIDAD AZTECA",1]
[null,"UNIVERSIDAD METROPOLITANA DE OCCIDENTE ",1]
[null,"UTEG",5]
[null,"UTEGRA",6]
[null,"?",1]
[null,"TOTAL",{"$f":"SUM(C206:C221)","v":125}]
[]
[null,"PORCENTAJE DE PARTICIPACIÓN",{"$f":"15/30","v":0.5}]
[]
[]
[]
[]
[null,"PORCENTAJE DE PARTICIPACIÓN POR EDAD"]
[]
[null,12,0]
[null,13,0]
[null,14,0]
[null,15,2]
[null,16,2]
[null,17,2]
[null,18,10]
[null,19,15]
[null,20,10]
[null,21,12]
[null,22,8]
[null,23,7]
[null,24,4]
[null,25,2]
[null,26,7]
[null,27,5]
[null,28,5]
[null,29,1]
[null,30,1]
[null,32,5]
[null,33,5]
[null,34,1]
[null,35,1]
[null,37,1]
[null,38,2]
[null,39,1]
[null,41,1]
[null,51,1]
[null,52,1]
[null,54,1]
[null,"Vacias",12]
[null,"TOTAL",{"$f":"SUM(C232:C261)","v":125}]

{"sheet":"Compartivo x años (B)","index":6,"n_rows":22,"n_cols":3,"rows_kept":22,"cut":false,"hidden":false,"merged":[[16,1,16,2]]}
[]
[]
[]
[]
["DIRECCIÓN DE JUVENTUDES "]
["SUBSECRETARÍA DE DERECHOS HUMANOS "]
["SECRETARÍA GENERAL DE GOBIERNO "]
["Indicador de Becas de instituciones de educación privada, gestionadas y entregadas  \n\"Becas Joven\" "]
["Año: 2019 a 2021"]
{"$rows_empty":7}
[null,"PORCENTAJE DE PARTICIPACIÓN\n POR AÑO"]
[]
[null,2021,{"$f":"'2021'!E21","v":134}]
[null,2020,{"$f":"'2021'!D21","v":125}]
[null,2019,{"$f":"'2021'!C21","v":96}]
[null,"TOTAL",{"$f":"SUM(C19:C21)","v":355}]

{"sheet":"Compartivo x años (C)","index":7,"n_rows":23,"n_cols":5,"rows_kept":23,"cut":false,"hidden":false,"merged":[[16,1,16,3],[7,0,7,10],[20,1,21,1],[20,2,21,2]]}
[]
[]
[]
[]
["DIRECCIÓN DE JUVENTUDES "]
["SUBSECRETARÍA DE DERECHOS HUMANOS "]
["SECRETARÍA GENERAL DE GOBIERNO "]
["Indicador de Convenios \nBecas de instituciones de educación privada, gestionadas y entregadas \"Becas Joven\" "]
["Año: 2019 a 2021"]
{"$rows_empty":7}
[null,"CONVENIOS LOGRADOS POR AÑO "]
[]
[null,2021,0,0]
[null,2020,5,5]
[null,2019,{"$f":"SUM(D21:D22)","v":25},5]
[null,null,null,20,"S. Igualdad Sustantiva "]
[null,"TOTAL",{"$f":"SUM(C19:C22)","v":30}]